bitfinex/quotes_SOLUSD_20220103
["timestamp","ask_amount","ask_price","bid_price","bid_amount"]
[1641197582191,8.1,173.46,173.36,13.58501147]
[1641197583194,24.36989944,173.47,173.36,13.58501147]
[1641197583394,8.6508,173.46,173.36,13.58501147]
[1641197583596,24.36989944,173.47,173.36,13.58501147]
[1641197583995,3.27622133,173.48,173.36,14.93971147]
[1641197584395,8.6502,173.47,173.36,14.93971147]
[1641197586797,8.6502,173.47,173.37,1.42669368]
[1641197586999,8.6502,173.47,173.4,8.6497]
[1641197587200,8.6502,173.47,173.41,2.7492819]
[1641197587603,8.6502,173.47,173.41,3.0092819]
[1641197588006,94.8642,173.5,173.41,17.5217819]
[1641197588202,86.7642,173.5,173.41,17.5217819]
[1641197590512,86.7642,173.5,173.41,8.8722819]
[1641197590712,87.2642,173.5,173.41,3.0092819]
[1641197591011,86.7642,173.5,173.41,3.0092819]
[1641197591512,6.53830407,173.49,173.41,3.0092819]
[1641197592013,8.65,173.47,173.41,3.0092819]
[1641197595440,8.65,173.47,173.39,8.6505]
[1641197595639,16.75,173.47,173.38,8.651]
[1641197596037,16.75,173.47,173.36,1.82673696]
[1641197596238,17.25,173.47,173.36,1.82673696]
[1641197596837,17.51,173.47,173.36,1.82673696]
[1641197597237,17.25,173.47,173.36,1.82673696]
[1641197597437,20.52622133,173.47,173.36,1.82673696]
[1641197598043,20.78622133,173.47,173.36,1.82673696]
[1641197598240,9.81632981,173.46,173.36,1.82673696]
[1641197598440,8.6539,173.41,173.36,1.82673696]
[1641197599040,8.6539,173.41,173.36,2.08673696]
[1641197600643,8.6539,173.41,173.36,1.82673696]
[1641197602043,8.6539,173.41,173.36,2.08673696]
[1641197604646,8.6539,173.41,173.36,4.31098562]
[1641197605446,8.6539,173.41,173.36,2.08673696]
[1641197610351,9.1539,173.41,173.36,2.08673696]
[1641197610951,9.1539,173.41,173.36,1.82673696]
[1641197612352,9.1539,173.41,173.36,2.08673696]
[1641197618260,8.1,173.4,173.36,2.08673696]
[1641197618564,8.6548,173.38,173.36,2.08673696]
[1641197618961,32.02814704,173.37,173.36,1.82673696]
[1641197619561,3.02814704,173.37,173.36,1.82673696]
[1641197620362,11.68354704,173.37,173.36,1.82673696]
[1641197625468,11.68354704,173.37,173.35,19.58199853]
[1641197625469,62.82673696,173.36,173.35,19.58199853]
[1641197625667,79.58333696,173.36,173.35,19.58199853]
[1641197625866,80.08333696,173.36,173.35,19.58199853]
[1641197626071,80.08333696,173.36,173.24,1.261]
[1641197626072,31.74210307,173.35,173.24,1.261]
[1641197626269,68.08069949,173.35,173.22,2.51190491]
[1641197626468,68.84069949,173.35,173.22,2.51190491]
[1641197626669,8.6581,173.3,173.22,11.17070491]
[1641197626868,8.6581,173.3,173.23,1.2661]
[1641197627072,8.1,173.33,173.23,1.2661]
[1641197627269,8.1,173.33,173.23,2.69279368]
[1641197627472,8.1,173.33,173.23,2.95279368]
[1641197627670,8.1,173.33,173.23,2.69279368]
[1641197627871,8.6577,173.31,173.25,2.92002116]
[1641197629094,8.6577,173.31,173.25,3.18002116]
[1641197629295,8.6571,173.32,173.25,11.83732116]
[1641197629497,8.1,173.33,173.25,11.83732116]
[1641197630397,16.7566,173.33,173.25,11.83732116]
[1641197637205,16.7566,173.33,173.26,1.42669368]
[1641197637405,16.7566,173.33,173.27,8.6562]
[1641197637605,8.1,173.33,173.28,2.38674877]
[1641197638005,8.1,173.33,173.28,2.64674877]
[1641197639807,8.6561,173.34,173.28,2.64674877]
[1641197640309,8.6561,173.34,173.28,2.38674877]
[1641197641509,8.6561,173.34,173.28,2.64674877]
[1641197643310,31.74210307,173.35,173.28,11.30254877]
[1641197651519,40.39750307,173.35,173.28,11.30254877]
[1641197654642,31.74210307,173.35,173.28,11.30254877]
[1641197666767,31.74210307,173.35,173.28,12.72924245]
[1641197675872,31.74210307,173.35,173.28,12.46924245]
[1641197677577,31.74210307,173.35,173.28,12.72924245]
[1641197677977,31.74210307,173.35,173.28,10.34249368]
[1641197678180,31.74210307,173.35,173.28,10.08249368]
[1641197679380,31.74210307,173.35,173.28,10.34249368]
[1641197686306,31.74210307,173.35,173.28,10.08249368]
[1641197687508,31.74210307,173.35,173.28,10.34249368]
[1641197700354,31.74210307,173.35,173.28,8.9158]
[1641197704758,31.74210307,173.35,173.28,10.2373]
[1641197710765,31.74210307,173.35,173.28,8.6558]
[1641197711165,31.74210307,173.35,173.26,8.6567]
[1641197712166,8.1,173.34,173.24,8.6576]
[1641197712370,22.5746787,173.33,173.24,8.6576]
[1641197712968,23.8959787,173.33,173.24,11.31464447]
[1641197713367,8.6576,173.31,173.24,11.57464447]
[1641197713771,8.6576,173.31,173.24,8.9176]
[1641197716875,8.657,173.32,173.24,8.9176]
[1641197723604,16.757,173.32,173.24,8.9176]
[1641197724004,16.757,173.32,173.24,10.34429368]
[1641197724205,8.657,173.32,173.24,10.34429368]
[1641197726004,8.657,173.32,173.24,8.9176]
[1641197728708,8.657,173.32,173.24,10.34429368]
[1641197734416,8.657,173.32,173.24,8.9176]
[1641197735914,8.657,173.32,173.24,8.6576]
[1641197737519,8.657,173.32,173.24,8.9176]
[1641197743428,8.657,173.32,173.24,8.6576]
[1641197744728,8.657,173.32,173.24,8.9176]
[1641197751633,8.657,173.32,173.24,8.6576]
[1641197751833,8.1,173.31,173.16,4.91022432]
[1641197752062,8.6616,173.24,173.16,4.91022432]
[1641197752264,24.99959592,173.23,173.16,4.91022432]
[1641197752863,28.8748,173.25,173.16,4.91022432]
[1641197753062,8.663,173.2,173.14,2.67101119]
[1641197753263,8.663,173.2,173.14,2.93101119]
[1641197753663,28.8748,173.25,173.14,2.93101119]
[1641197753862,1.3563,173.24,173.14,2.93101119]
[1641197754462,8.6624,173.21,173.14,2.93101119]
[1641197756666,8.6624,173.21,173.14,0.26]
[1641197757065,8.6624,173.21,173.11,1.4904]
[1641197757265,8.6624,173.21,173.11,1.2304]
[1641197757469,8.6624,173.21,173.11,1.4904]
[1641197757670,8.6624,173.21,173.12,2.28927179]
[1641197757865,8.6624,173.21,173.13,102.6625]
[1641197758066,8.6624,173.21,173.13,102.9225]
[1641197760275,8.6624,173.21,173.13,8.9225]
[1641197763273,8.6619,173.22,173.13,8.9225]
[1641197763472,8.1,173.25,173.14,1.42669368]
[1641197763671,8.1,173.25,173.14,2.76259368]
[1641197763872,8.1,173.25,173.18,2.53099181]
[1641197764174,8.1,173.25,173.18,2.79099181]
[1641197764372,16.7604,173.25,173.18,2.79099181]
[1641197764774,16.7604,173.25,173.18,11.45099181]
[1641197765172,8.1,173.25,173.18,11.45099181]
[1641197766172,28.24716155,173.26,173.18,11.45099181]
[1641197766372,36.90706155,173.26,173.18,11.45099181]
[1641197767076,35.66296155,173.26,173.18,11.45099181]
[1641197771485,8.6599,173.26,173.18,11.45099181]
[1641197771685,9.3361,173.28,173.18,12.87768549]
[1641197771686,1.2361,173.28,173.18,12.87768549]
[1641197772486,24.72804455,173.29,173.21,8.6587]
[1641197772890,24.72804455,173.29,173.21,8.9187]
[1641197773388,8.6589,173.28,173.21,8.9187]
[1641197773587,24.72804455,173.29,173.21,8.9187]
[1641197774489,33.38644455,173.29,173.21,8.9187]
[1641197775892,33.38644455,173.29,173.21,0.26]
[1641197776091,33.38644455,173.29,173.2,8.9193]
[1641197776691,33.38644455,173.29,173.2,10.34599368]
[1641197780123,41.48644455,173.29,173.2,10.34599368]
[1641197781726,41.48644455,173.29,173.2,1.42669368]
[1641197781927,41.48644455,173.29,173.18,2.53099181]
[1641197782127,42.24644455,173.29,173.18,2.53099181]
[1641197782526,42.24644455,173.29,173.14,83.85322432]
[1641197782728,1.2363,173.28,173.14,78.943]
[1641197782931,8.6622,173.22,173.15,8.6618]
[1641197783137,40.67717739,173.22,173.15,8.6618]
[1641197783330,40.67717739,173.22,173.15,8.9218]
[1641197783930,40.67717739,173.22,173.15,11.89899919]
[1641197784529,40.67717739,173.22,173.15,3.23719919]
[1641197788346,40.67717739,173.22,173.15,11.89909919]
[1641197788735,8.6622,173.22,173.15,11.89909919]
[1641197790667,8.6614,173.23,173.15,11.89909919]
[1641197796273,40.41793314,173.24,173.15,11.89909919]
[1641197796672,16.7609,173.24,173.15,11.89909919]
[1641197796872,8.1,173.24,173.15,13.32579287]
[1641197797089,8.1,173.24,173.15,14.66289287]
[1641197797273,9.8757,173.28,173.15,14.66289287]
[1641197797472,9.8757,173.28,173.15,20.64389287]
[1641197797673,8.6598,173.26,173.15,20.64389287]
[1641197805181,18.035,173.28,173.15,20.64389287]
[1641197805782,18.035,173.28,173.16,8.1]
[1641197805783,9.935,173.28,173.16,8.1]
[1641197805983,9.935,173.28,173.21,8.6589]
[1641197806182,8.6593,173.28,173.22,2.68462433]
[1641197806583,8.6593,173.28,173.22,2.94462433]
[1641197809588,8.6593,173.28,173.22,11.60312433]
[1641197810392,8.6593,173.28,173.22,8.9185]
[1641197811392,8.6593,173.28,173.22,0.26]
[1641197811590,8.6593,173.28,173.21,11.48195976]
[1641197817399,8.6593,173.28,173.21,8.919]
[1641197818496,8.6593,173.28,173.22,2.54980655]
[1641197818900,8.6593,173.28,173.22,2.80980655]
[1641197820601,8.6593,173.28,173.22,0.26]
[1641197820803,8.6593,173.28,173.21,8.919]
[1641197821606,8.6593,173.28,173.22,2.84553418]
[1641197822105,8.6593,173.28,173.22,3.10553418]
[1641197822506,8.6584,173.29,173.22,11.76393418]
[1641197823209,1.2979,173.3,173.22,11.76393418]
[1641197824328,9.9557,173.3,173.22,11.76393418]
[1641197833544,1.2979,173.3,173.22,11.76393418]
[1641197834541,1.2979,173.3,173.22,19.20193418]
[1641197835442,9.9558,173.3,173.22,19.20193418]
[1641197836944,9.9558,173.3,173.22,20.62862786]
[1641197837643,1.2979,173.3,173.22,20.62862786]
[1641197840548,9.9557,173.3,173.22,20.62862786]
[1641197840748,9.9557,173.3,173.22,13.19062786]
[1641197840949,24.46972452,173.29,173.22,13.19062786]
[1641197842451,8.6583,173.29,173.22,13.19062786]
[1641197845456,8.6583,173.29,173.22,10.34509368]
[1641197845853,16.7583,173.29,173.19,10.08639368]
[1641197846151,16.7583,173.29,173.19,8.6597]
[1641197846555,1.3044,173.28,173.19,11.14993909]
[1641197846753,8.6604,173.25,173.19,11.14993909]
[1641197847156,8.6604,173.25,173.19,11.40993909]
[1641197853887,8.6604,173.25,173.19,0.26]
[1641197854089,8.6604,173.25,173.18,1.2559]
[1641197854090,8.6604,173.25,173.18,1.5159]
[1641197854287,8.6604,173.25,173.18,1.2559]
[1641197854489,8.6604,173.25,173.18,1.5159]
[1641197855087,8.6604,173.25,173.18,3.93328562]
[1641197855487,8.6604,173.25,173.18,12.59378562]
[1641197861795,8.6604,173.25,173.18,11.33788562]
[1641197861996,32.38340486,173.24,173.18,0.26]
[1641197862397,32.38340486,173.24,173.17,8.921]
[1641197863397,32.38340486,173.24,173.18,2.1903614]
[1641197863599,32.38340486,173.24,173.18,2.4503614]
[1641197864497,32.38340486,173.24,173.17,8.661]
[1641197864498,32.38340486,173.24,173.16,9.9042]
[1641197865097,32.38340486,173.24,173.16,9.4042]
[1641197865698,32.38340486,173.24,173.17,2.99763491]
[1641197867502,32.38340486,173.24,173.14,102.6618]
[1641197867702,40.48340486,173.24,173.14,94.0]
[1641197867901,40.74340486,173.24,173.14,94.0]
[1641197868100,41.24340486,173.24,173.14,94.0]
[1641197868329,8.6632,173.2,173.14,94.26]
[1641197868502,8.6632,173.2,173.14,94.0]
[1641197870203,8.6632,173.2,173.11,72.0172]
[1641197870601,8.6632,173.2,173.09,1.2912]
[1641197870802,8.6632,173.2,173.09,1.5512]
[1641197871203,8.6632,173.2,173.1,2.59299248]
[1641197871402,10.0187,173.19,173.1,11.25669248]
[1641197871602,1.355,173.19,173.1,11.51669248]
[1641197872201,1.355,173.19,173.11,1.2499]
[1641197872701,1.355,173.19,173.11,1.5099]
[1641197873105,10.0186,173.19,173.11,0.26]
[1641197873303,10.0186,173.19,173.1,2.59299248]
[1641197873504,18.1186,173.19,173.1,2.59299248]
[1641197873903,18.3786,173.19,173.1,2.59299248]
[1641197874705,18.8786,173.19,173.1,2.85299248]
[1641197875503,18.8786,173.19,173.1,2.59299248]
[1641197876805,18.8786,173.19,173.1,2.85299248]
[1641197877507,18.3786,173.19,173.1,2.85299248]
[1641197879207,18.8786,173.19,173.1,2.85299248]
[1641197879408,18.8786,173.19,173.1,0.26]
[1641197879609,18.3786,173.19,173.04,9.6457]
[1641197880210,18.8786,173.19,173.04,9.6457]
[1641197880407,18.8786,173.19,173.06,8.6655]
[1641197880612,18.8786,173.19,173.06,8.9255]
[1641197881209,18.6186,173.19,173.07,1.3558]
[1641197881609,18.6186,173.19,173.07,1.6158]
[1641197882512,18.8786,173.19,173.07,1.6158]
[1641197886020,18.8786,173.19,173.07,1.3558]
[1641197887414,18.8786,173.19,173.07,1.6158]
[1641197887614,20.51392227,173.19,173.07,1.6158]
[1641197888215,20.51392227,173.19,173.05,85.53446267]
[1641197888414,19.75392227,173.19,173.05,85.53446267]
[1641197888618,19.75392227,173.19,173.07,8.6654]
[1641197889018,18.1186,173.19,173.07,8.6654]
[1641197889419,18.6186,173.19,173.05,76.86796267]
[1641197889819,18.8786,173.19,173.05,76.86796267]
[1641197890220,18.8786,173.19,173.06,1.3006]
[1641197890519,20.51392227,173.19,173.06,1.3006]
[1641197890720,20.51392227,173.19,173.06,1.5606]
[1641197890942,20.25392227,173.19,173.06,1.5606]
[1641197891142,20.51392227,173.19,173.06,1.5606]
[1641197891541,18.8786,173.19,173.06,1.5606]
[1641197892443,18.8786,173.19,173.06,10.2266]
[1641197895248,18.6186,173.19,173.06,10.2266]
[1641197895648,18.1186,173.19,173.06,10.2266]
[1641197899458,18.6186,173.19,173.06,10.2266]
[1641197901857,18.6186,173.19,173.06,9.9666]
[1641197902959,18.6186,173.19,173.06,10.2266]
[1641197903359,18.6186,173.19,173.06,9.9666]
[1641197903560,18.1186,173.19,173.06,9.9666]
[1641197904961,18.1186,173.19,173.06,10.2266]
[1641197907662,18.1186,173.19,173.06,11.65329368]
[1641197908062,18.1186,173.19,173.06,20.89914005]
[1641197909465,10.0186,173.19,173.06,28.99914005]
[1641197911875,10.0186,173.19,173.06,27.57244637]
[1641197913276,8.6624,173.21,173.06,28.99914005]
[1641197913574,1.63532227,173.23,173.07,0.30699162]
[1641197913774,1.63532227,173.23,173.16,2.88460724]
[1641197913973,1.63532227,173.23,173.16,0.26]
[1641197914376,23.72240486,173.24,173.16,0.26]
[1641197914574,8.6618,173.22,173.13,1.2326]
[1641197914974,8.6618,173.22,173.14,2.18672419]
[1641197915376,8.6618,173.22,173.16,8.6618]
[1641197915576,8.6618,173.22,173.16,8.9218]
[1641197916279,8.6618,173.22,173.16,0.26]
[1641197916479,8.6618,173.22,173.15,1.5311]
[1641197917302,8.6618,173.22,173.15,10.1934]
[1641197921407,8.6618,173.22,173.15,0.26]
[1641197921605,8.6618,173.22,173.14,11.10952419]
[1641197922004,8.6618,173.22,173.14,2.44672419]
[1641197922203,8.6618,173.22,173.14,0.26]
[1641197922406,8.9218,173.22,173.14,0.26]
[1641197922602,9.4218,173.22,173.12,10.2056]
[1641197923006,1.3067,173.21,173.12,10.2056]
[1641197923203,8.6639,173.18,173.13,2.62004594]
[1641197923603,8.6639,173.18,173.13,2.88004594]
[1641197924306,1.3067,173.21,173.13,11.54344594]
[1641197925103,1.8067,173.21,173.13,11.54344594]
[1641197925306,8.6634,173.19,173.13,11.54344594]
[1641197926105,8.6634,173.19,173.13,2.88004594]
[1641197929706,8.6634,173.19,173.13,11.54344594]
[1641197935016,8.6634,173.19,173.13,8.9234]
[1641197940225,8.6628,173.2,173.13,8.9234]
[1641197941029,8.6628,173.2,173.13,10.1765]
[1641197942232,8.6628,173.2,173.13,11.60319368]
[1641197945657,8.6628,173.2,173.13,10.1765]
[1641197946959,9.9692,173.21,173.13,10.1765]
[1641197947960,9.9692,173.21,173.14,1.42669368]
[1641197947961,1.3067,173.21,173.14,1.42669368]
[1641197948359,1.3067,173.21,173.16,8.6619]
[1641197948559,1.3067,173.21,173.16,8.9219]
[1641197952164,9.9692,173.21,173.16,0.26]
[1641197952565,9.9692,173.21,173.12,2.84025063]
[1641197954468,9.9692,173.21,173.14,8.6631]
[1641197954971,9.9692,173.21,173.14,8.9231]
[1641197959271,16.762,173.23,173.14,8.9231]
[1641197959470,1.226,173.22,173.14,8.9231]
[1641197961178,9.8882,173.22,173.14,8.9231]
[1641197961974,9.8882,173.22,173.14,8.6631]
[1641197963374,9.8882,173.22,173.14,8.9231]
[1641197967782,1.226,173.22,173.14,8.9231]
[1641197977114,1.226,173.22,173.18,8.6611]
[1641197977316,32.38350486,173.24,173.18,8.6611]
[1641197977619,32.38350486,173.24,173.18,8.9211]
[1641197981617,32.38350486,173.24,173.18,0.26]
[1641197982118,32.38350486,173.24,173.17,8.9215]
[1641197982318,32.38350486,173.24,173.18,2.19533343]
[1641197982619,8.6611,173.24,173.18,2.45533343]
[1641197983419,8.6611,173.24,173.18,11.11633343]
[1641197983719,41.40927285,173.25,173.18,11.11633343]
[1641197986029,32.74857285,173.25,173.18,11.11633343]
[1641197987336,32.74857285,173.25,173.18,8.921]
[1641197987536,32.74857285,173.25,173.15,30.1345]
[1641197987537,41.40917285,173.25,173.17,8.6615]
[1641197988137,41.90917285,173.25,173.17,8.6615]
[1641197988437,43.54449512,173.25,173.17,8.6615]
[1641197988838,43.54449512,173.25,173.17,8.9215]
[1641197989639,43.54449512,173.25,173.17,0.26]
[1641197990041,8.1,173.24,173.09,31.59669368]
[1641197990240,8.6639,173.19,173.09,31.5028]
[1641197990444,23.17438724,173.18,173.09,31.5028]
[1641197990841,23.17438724,173.18,173.13,8.6632]
[1641197991043,23.17438724,173.18,173.14,2.33394182]
[1641197991242,23.17438724,173.18,173.13,8.6632]
[1641197991442,82.31492227,173.22,173.13,8.9232]
[1641197991644,1.2809,173.21,173.13,8.9232]
[1641197992345,28.80437206,173.2,173.14,2.88520449]
[1641197992543,28.80437206,173.2,173.14,11.80790449]
[1641197996971,8.662,173.22,173.14,11.80790449]
[1641197998074,39.67510926,173.22,173.14,11.80790449]
[1641197999071,31.01310926,173.22,173.14,11.80790449]
[1641198000277,31.01310926,173.22,173.14,8.9227]
[1641198000479,39.67520926,173.22,173.14,8.9227]
[1641198001378,40.17520926,173.22,173.14,8.9227]
[1641198004779,41.81053153,173.22,173.14,8.9227]
[1641198006683,41.31053153,173.22,173.14,8.9227]
[1641198006885,39.67520926,173.22,173.14,8.9227]
[1641198014494,31.01310926,173.22,173.14,8.9227]
[1641198015194,1.3548,173.23,173.14,8.9227]
[1641198015594,1.3548,173.23,173.15,1.2706]
[1641198015794,1.3548,173.23,173.19,8.6605]
[1641198015995,8.6609,173.24,173.19,8.9205]
[1641198017397,8.6609,173.24,173.19,0.26]
[1641198017598,8.6609,173.24,173.18,8.9211]
[1641198017797,8.6609,173.24,173.18,0.26]
[1641198017997,1.3298,173.23,173.14,1.5067]
[1641198018198,1.3298,173.23,173.13,0.26]
[1641198018398,8.6621,173.22,173.13,2.74870023]
[1641198018598,8.6621,173.22,173.13,2.48870023]
[1641198018900,8.6621,173.22,173.13,2.74870023]
[1641198019102,8.6621,173.22,173.16,8.6616]
[1641198019503,8.6621,173.22,173.16,8.9216]
[1641198022931,9.9913,173.23,173.16,8.9216]
[1641198024136,1.3298,173.23,173.16,8.9216]
[1641198026937,33.26379525,173.25,173.16,8.9216]
[1641198027136,1.63532227,173.26,173.16,10.34829368]
[1641198027137,10.29522227,173.26,173.16,10.34829368]
[1641198027336,1.3196,173.27,173.16,10.34829368]
[1641198027939,1.3196,173.27,173.17,1.323]
[1641198028238,40.72184228,173.27,173.21,8.6594]
[1641198028438,9.979,173.27,173.21,8.6594]
[1641198028639,9.979,173.27,173.21,8.9194]
[1641198029039,1.3196,173.27,173.21,8.9194]
[1641198031847,1.3196,173.27,173.21,8.6594]
[1641198032144,1.3196,173.27,173.2,8.6601]
[1641198032744,2.95492227,173.27,173.2,8.6601]
[1641198033373,9.9792,173.27,173.2,8.9201]
[1641198035447,9.9792,173.27,173.2,10.2229]
[1641198036547,8.6596,173.27,173.2,8.9201]
[1641198036750,102.5841,173.39,173.2,8.9201]
[1641198036751,23.25626754,173.44,173.35,46.49828697]
[1641198036949,8.19055332,173.44,173.41,3.01296884]
[1641198037151,8.19055332,173.44,173.41,6.04516881]
[1641198037348,518.08501431,173.42,173.41,6.30516881]
[1641198037550,542.40542376,173.42,173.41,3.27296884]
[1641198037851,27.34855649,173.42,173.41,3.27296884]
[1641198038049,24.32040945,173.42,173.41,3.27296884]
[1641198038248,24.32040945,173.42,173.41,6.30516881]
[1641198040254,8.1,173.5,173.42,2.40551311]
[1641198040452,8.6,173.5,173.42,2.40551311]
[1641198040652,8.6,173.5,173.42,2.66551311]
[1641198040890,8.1,173.5,173.42,2.66551311]
[1641198041090,8.1,173.54,173.42,2.66551311]
[1641198041293,25.30944598,173.49,173.42,2.66551311]
[1641198042492,25.30944598,173.49,173.42,11.31431311]
[1641198043793,25.30944598,173.49,173.42,2.66551311]
[1641198046497,25.30944598,173.49,173.42,11.31451311]
[1641198053938,25.30944598,173.49,173.42,11.05451311]
[1641198055039,25.30944598,173.49,173.42,11.31451311]
[1641198074693,25.30944598,173.49,173.42,8.909]
[1641198075093,25.30944598,173.49,173.42,8.649]
[1641198075293,25.30944598,173.49,173.39,1.2483]
[1641198075495,25.56944598,173.49,173.37,9.4067]
[1641198075894,25.56944598,173.49,173.38,2.63929499]
[1641198076496,25.56944598,173.49,173.38,2.89929499]
[1641198077095,25.56944598,173.49,173.39,8.6503]
[1641198077496,25.56944598,173.49,173.39,8.9103]
[1641198078199,34.22024598,173.49,173.35,48.57919559]
[1641198078395,42.82024598,173.49,173.35,40.47919559]
[1641198078997,1.3085,173.48,173.35,40.47919559]
[1641198079197,8.1,173.47,173.35,40.47919559]
[1641198079398,8.6,173.47,173.35,40.47919559]
[1641198079597,8.6531,173.44,173.35,40.73919559]
[1641198079996,8.9131,173.44,173.35,40.73919559]
[1641198081000,8.6531,173.44,173.35,40.73919559]
[1641198081398,8.6531,173.44,173.35,49.39169559]
[1641198081998,8.6531,173.44,173.35,40.73919559]
[1641198083400,8.6531,173.44,173.35,49.39169559]
[1641198085006,8.9131,173.44,173.35,40.47919559]
[1641198085405,9.4131,173.44,173.35,40.47919559]
[1641198086207,9.1531,173.44,173.35,40.47919559]
[1641198086408,8.9131,173.44,173.36,2.59970408]
[1641198086608,8.9131,173.44,173.36,0.26]
[1641198086812,9.4131,173.44,173.36,0.26]
[1641198087211,9.4131,173.44,173.35,40.73919559]
[1641198088009,9.4131,173.44,173.35,43.61780261]
[1641198088509,8.9131,173.44,173.35,43.61780261]
[1641198089010,9.4131,173.44,173.35,43.61780261]
[1641198092938,8.9131,173.44,173.35,43.61780261]
[1641198094439,9.4131,173.44,173.35,43.61780261]
[1641198094640,8.9131,173.44,173.35,43.61780261]
[1641198095339,9.9245,173.46,173.35,43.61780261]
[1641198097443,9.9245,173.46,173.35,52.27040261]
[1641198097644,10.1845,173.46,173.35,52.27040261]
[1641198098044,10.1845,173.46,173.35,43.61780261]
[1641198099949,10.6845,173.46,173.35,43.61780261]
[1641198110258,10.6845,173.46,173.35,40.73919559]
[1641198114263,10.1845,173.46,173.35,40.73919559]
[1641198114465,10.1845,173.46,173.35,48.14419559]
[1641198114663,10.1845,173.46,173.36,1.3465]
[1641198115063,10.1845,173.46,173.36,1.6065]
[1641198116492,10.6845,173.46,173.36,1.6065]
[1641198118897,10.6845,173.46,173.36,1.3465]
[1641198119899,10.4245,173.46,173.36,1.3465]
[1641198120300,10.4245,173.46,173.36,1.6065]
[1641198121003,10.6845,173.46,173.36,1.6065]
[1641198125312,8.6537,173.42,173.36,1.6065]
[1641198125512,28.2600572,173.41,173.36,1.6065]
[1641198126412,28.2600572,173.41,173.36,0.26]
[1641198126611,28.2600572,173.41,173.35,40.73919559]
[1641198126812,36.9140572,173.41,173.35,40.73919559]
[1641198129916,37.1740572,173.41,173.35,40.47919559]
[1641198130716,37.6740572,173.41,173.35,40.47919559]
[1641198132119,40.47919559,173.35,173.24,8.1]
[1641198132319,49.13629559,173.35,173.26,1.2868]
[1641198132621,23.51473483,173.34,173.26,1.2868]
[1641198132818,24.79893483,173.34,173.26,1.2868]
[1641198133018,25.05893483,173.34,173.26,1.2868]
[1641198133418,24.79893483,173.34,173.26,1.2868]
[1641198133722,8.6584,173.32,173.26,1.5468]
[1641198136321,8.6584,173.32,173.26,0.26]
[1641198136520,8.6584,173.32,173.24,3.03703428]
[1641198136921,8.6584,173.32,173.24,3.29703428]
[1641198138431,8.6584,173.32,173.24,3.03703428]
[1641198138928,32.17243483,173.34,173.24,11.69493428]
[1641198139132,32.43243483,173.34,173.24,11.69493428]
[1641198140028,32.43243483,173.34,173.24,11.95493428]
[1641198143360,32.17243483,173.34,173.24,11.95493428]
[1641198144764,23.51473483,173.34,173.24,11.95493428]
[1641198144964,23.51473483,173.34,173.24,20.05493428]
[1641198145165,23.51473483,173.34,173.25,1.42669368]
[1641198145368,23.51473483,173.34,173.3,2.47038544]
[1641198145568,23.51473483,173.34,173.3,2.73038544]
[1641198146469,23.51473483,173.34,173.3,11.38538544]
[1641198147471,23.51473483,173.34,173.3,8.915]
[1641198147672,23.51473483,173.34,173.3,0.26]
[1641198147978,23.51473483,173.34,173.27,1.5634]
[1641198148572,23.51473483,173.34,173.27,4.16763821]
[1641198149373,23.51473483,173.34,173.27,12.82403821]
[1641198153278,23.51473483,173.34,173.27,12.56403821]
[1641198154478,23.51473483,173.34,173.27,12.82403821]
[1641198157481,23.51473483,173.34,173.27,17.56003821]
[1641198160919,23.51473483,173.34,173.27,9.9598]
[1641198161110,23.51473483,173.34,173.26,8.6569]
[1641198161909,23.51473483,173.34,173.27,2.21769175]
[1641198162111,23.51473483,173.34,173.27,2.47769175]
[1641198162515,23.51473483,173.34,173.27,11.13419175]
[1641198164819,23.51473483,173.34,173.27,8.9165]
[1641198165820,23.51473483,173.34,173.27,0.26]
[1641198166022,23.51473483,173.34,173.26,11.26823093]
[1641198166221,32.17193483,173.34,173.26,0.26]
[1641198166422,1.2994,173.33,173.26,0.26]
[1641198166622,1.2994,173.33,173.24,1.5684]
[1641198167223,1.2994,173.33,173.25,2.74063986]
[1641198167423,9.9573,173.33,173.25,3.00063986]
[1641198167624,1.2994,173.33,173.25,9.81763986]
[1641198168225,23.51473483,173.34,173.25,9.81763986]